[Event "Titled Tuesday Blitz November 07 Early 2023"]
[White "aghasiyevkamal"]
[Black "Dodaro, Mattia"]
[BlackFideId "28583400"]
[WhiteElo "2603"]
[BlackElo "2259"]
[Result "1-0"]
[Round "1"]
[TimeControl "180+1"]
[Date "2023.11.07"]
[WhiteClock "0:02:04"]
[BlackClock "0:02:30"]
[Board "199"]

1. d4 {[%clk 0:03:00]}  c5 {[%clk 0:02:55]} 2. d5 {[%clk 0:03:00]}  e5 {[%clk 0:02:56]} 3. c4 {[%clk 0:03:00]}  d6 {[%clk 0:02:56]} 4. Nc3 {[%clk 0:03:00]}  g6 {[%clk 0:02:57]} 5. e4 {[%clk 0:02:57]}  Bg7 {[%clk 0:02:57]} 6. Bd3 {[%clk 0:02:57]}  Ne7 {[%clk 0:02:57]} 7. h4 {[%clk 0:02:56]}  h6 {[%clk 0:02:57]} 8. h5 {[%clk 0:02:52]}  g5 {[%clk 0:02:56]} 9. g4 {[%clk 0:02:52]}  Na6 {[%clk 0:02:53]} 10. f3 {[%clk 0:02:51]}  O-O {[%clk 0:02:53]} 11. Be3 {[%clk 0:02:48]}  Bd7 {[%clk 0:02:52]} 12. Qd2 {[%clk 0:02:48]}  Nc7 {[%clk 0:02:52]} 13. Nge2 {[%clk 0:02:35]}  a6 {[%clk 0:02:50]} 14. a4 {[%clk 0:02:33]}  b6 {[%clk 0:02:49]} 15. O-O {[%clk 0:02:29]}  Qb8 {[%clk 0:02:47]} 16. Ng3 {[%clk 0:02:08]}  Qb7 {[%clk 0:02:46]} 17. Nf5 {[%clk 0:02:06]}  Nxf5 {[%clk 0:02:46]} 18. exf5 {[%clk 0:02:05]}  Bf6 {[%clk 0:02:44]} 19. Ne4 {[%clk 0:02:05]}  Be8 {[%clk 0:02:30]} 20. Nxf6+ {[%clk 0:02:04]} 1-0


[Site "https://www.chess.com"]

[Event "Titled Tuesday Blitz November 07 Early 2023"]
[White "Perdomo, Carlos Andres"]
[Black "Xqswdc"]
[WhiteFideId "4400852"]
[WhiteElo "2601"]
[BlackElo "2257"]
[Result "1-0"]
[Round "1"]
[TimeControl "180+1"]
[Date "2023.11.07"]
[WhiteClock "0:00:26"]
[BlackClock "0:00:01"]
[Board "201"]

1. c4 {[%clk 0:02:59]}  e5 {[%clk 0:02:58]} 2. Nc3 {[%clk 0:02:58]}  Nf6 {[%clk 0:02:58]} 3. Nf3 {[%clk 0:02:55]}  Nc6 {[%clk 0:02:58]} 4. e3 {[%clk 0:02:48]}  Bb4 {[%clk 0:02:51]} 5. Qc2 {[%clk 0:02:47]}  a5 {[%clk 0:02:46]} 6. Be2 {[%clk 0:02:41]}  O-O {[%clk 0:02:46]} 7. O-O {[%clk 0:02:40]}  d6 {[%clk 0:02:46]} 8. Na4 {[%clk 0:02:16]}  e4 {[%clk 0:02:39]} 9. Nd4 {[%clk 0:02:05]}  Ne5 {[%clk 0:02:24]} 10. f4 {[%clk 0:01:47]}  exf3 {[%clk 0:02:23]} 11. Nxf3 {[%clk 0:01:47]}  Nxf3+ {[%clk 0:01:49]} 12. Bxf3 {[%clk 0:01:47]}  d5 {[%clk 0:01:49]} 13. c5 {[%clk 0:01:40]}  b5 {[%clk 0:01:40]} 14. a3 {[%clk 0:01:16]}  bxa4 {[%clk 0:01:03]} 15. axb4 {[%clk 0:01:16]}  Ba6 {[%clk 0:00:52]} 16. Re1 {[%clk 0:01:08]}  Bb5 {[%clk 0:00:53]} 17. bxa5 {[%clk 0:01:03]}  c6 {[%clk 0:00:48]} 18. d4 {[%clk 0:01:01]}  Re8 {[%clk 0:00:45]} 19. Bd2 {[%clk 0:01:00]}  Ne4 {[%clk 0:00:44]} 20. Bb4 {[%clk 0:00:57]}  Ng5 {[%clk 0:00:42]} 21. Be2 {[%clk 0:00:49]}  Rxe3 {[%clk 0:00:30]} 22. Bxb5 {[%clk 0:00:49]}  Rxe1+ {[%clk 0:00:31]} 23. Rxe1 {[%clk 0:00:48]}  cxb5 {[%clk 0:00:31]} 24. Qd3 {[%clk 0:00:46]}  Qd7 {[%clk 0:00:29]} 25. Re5 {[%clk 0:00:44]}  Ne4 {[%clk 0:00:28]} 26. a6 {[%clk 0:00:32]}  f6 {[%clk 0:00:27]} 27. Rxe4 {[%clk 0:00:31]}  dxe4 {[%clk 0:00:27]} 28. Qxe4 {[%clk 0:00:32]}  Rxa6 {[%clk 0:00:25]} 29. d5 {[%clk 0:00:31]}  Kf7 {[%clk 0:00:25]} 30. c6 {[%clk 0:00:31]}  Qe8 {[%clk 0:00:20]} 31. Qd3 {[%clk 0:00:30]}  Qe5 {[%clk 0:00:12]} 32. Bc3 {[%clk 0:00:26]}  Qd6 {[%clk 0:00:09]} 33. Qxb5 {[%clk 0:00:26]}  Ra8 {[%clk 0:00:08]} 34. Qb7+ {[%clk 0:00:26]}  Qe7 {[%clk 0:00:06]} 35. Qxa8 {[%clk 0:00:25]}  Qe3+ {[%clk 0:00:05]} 36. Kf1 {[%clk 0:00:25]}  Qc1+ {[%clk 0:00:04]} 37. Ke2 {[%clk 0:00:25]}  Qc2+ {[%clk 0:00:04]} 38. Ke3 {[%clk 0:00:26]}  Qc1+ {[%clk 0:00:04]} 39. Kd3 {[%clk 0:00:26]}  Qf1+ {[%clk 0:00:04]} 40. Kd4 {[%clk 0:00:26]}  Qf2+ {[%clk 0:00:04]} 41. Kc4 {[%clk 0:00:26]}  Qe2+ {[%clk 0:00:05]} 42. Kb4 {[%clk 0:00:26]}  Qxb2+ {[%clk 0:00:01]} 43. Bxb2 {[%clk 0:00:26]} 1-0


[Site "https://www.chess.com"]

[Event "Titled Tuesday Blitz November 07 Early 2023"]
[White "Hon, Eric"]
[Black "Herzog2012"]
[WhiteFideId "2097117"]
[WhiteElo "2252"]
[BlackElo "2595"]
[Result "0-1"]
[Round "1"]
[TimeControl "180+1"]
[Date "2023.11.07"]
[WhiteClock "0:00:03"]
[BlackClock "0:00:21"]
[Board "202"]

1. e3 {[%clk 0:02:55]}  d5 {[%clk 0:02:57]} 2. f4 {[%clk 0:02:53]}  g6 {[%clk 0:02:52]} 3. Nf3 {[%clk 0:02:42]}  Bg7 {[%clk 0:02:52]} 4. d4 {[%clk 0:02:40]}  Nf6 {[%clk 0:02:50]} 5. Bd3 {[%clk 0:02:31]}  Bf5 {[%clk 0:02:46]} 6. O-O {[%clk 0:02:21]}  Nbd7 {[%clk 0:02:44]} 7. Bxf5 {[%clk 0:02:17]}  gxf5 {[%clk 0:02:43]} 8. Ne5 {[%clk 0:02:18]}  e6 {[%clk 0:02:39]} 9. Nd2 {[%clk 0:02:07]}  c6 {[%clk 0:02:35]} 10. Ndf3 {[%clk 0:02:01]}  Ne4 {[%clk 0:02:30]} 11. Bd2 {[%clk 0:01:52]}  Nxe5 {[%clk 0:02:22]} 12. Nxe5 {[%clk 0:01:50]}  Bxe5 {[%clk 0:02:20]} 13. fxe5 {[%clk 0:01:51]}  Qg5 {[%clk 0:02:14]} 14. Rf4 {[%clk 0:01:24]}  O-O-O {[%clk 0:02:05]} 15. Qe2 {[%clk 0:01:15]}  h5 {[%clk 0:01:56]} 16. Kh1 {[%clk 0:01:03]}  h4 {[%clk 0:01:53]} 17. Rxe4 {[%clk 0:00:50]}  dxe4 {[%clk 0:01:42]} 18. Rf1 {[%clk 0:00:40]}  h3 {[%clk 0:01:41]} 19. g3 {[%clk 0:00:40]}  Qg4 {[%clk 0:01:37]} 20. Qxg4 {[%clk 0:00:39]}  fxg4 {[%clk 0:01:36]} 21. Bb4 {[%clk 0:00:35]}  Rh5 {[%clk 0:01:23]} 22. Rxf7 {[%clk 0:00:33]}  Rf5 {[%clk 0:01:21]} 23. Rxf5 {[%clk 0:00:33]}  exf5 {[%clk 0:01:22]} 24. Kg1 {[%clk 0:00:31]}  b6 {[%clk 0:01:20]} 25. Be7 {[%clk 0:00:30]}  Re8 {[%clk 0:01:11]} 26. Bg5 {[%clk 0:00:27]}  c5 {[%clk 0:01:09]} 27. Kf2 {[%clk 0:00:27]}  Kd7 {[%clk 0:01:08]} 28. c3 {[%clk 0:00:27]}  Ke6 {[%clk 0:01:06]} 29. Bf6 {[%clk 0:00:22]}  Kd5 {[%clk 0:01:05]} 30. b3 {[%clk 0:00:23]}  b5 {[%clk 0:01:01]} 31. Ke2 {[%clk 0:00:21]}  Rc8 {[%clk 0:00:54]} 32. Kd2 {[%clk 0:00:19]}  a5 {[%clk 0:00:53]} 33. Be7 {[%clk 0:00:18]}  cxd4 {[%clk 0:00:50]} 34. exd4 {[%clk 0:00:18]}  b4 {[%clk 0:00:47]} 35. cxb4 {[%clk 0:00:09]}  axb4 {[%clk 0:00:24]} 36. Bxb4 {[%clk 0:00:06]}  Kxd4 {[%clk 0:00:24]} 37. e6 {[%clk 0:00:06]}  e3+ {[%clk 0:00:23]} 38. Kd1 {[%clk 0:00:06]}  f4 {[%clk 0:00:22]} 39. gxf4 {[%clk 0:00:03]}  g3 {[%clk 0:00:21]} 0-1


[Site "https://www.chess.com"]

[Event "Titled Tuesday Blitz November 07 Early 2023"]
[White "Van Dael, Siem"]
[Black "Ruge, Edison"]
[WhiteFideId "1049771"]
[BlackFideId "4401000"]
[WhiteElo "2591"]
[BlackElo "2251"]
[Result "0-1"]
[Round "1"]
[TimeControl "180+1"]
[Date "2023.11.07"]
[WhiteClock "0:00:29"]
[BlackClock "0:00:44"]
[Board "203"]

1. e4 {[%clk 0:03:00]}  e5 {[%clk 0:02:58]} 2. Nf3 {[%clk 0:03:00]}  Nc6 {[%clk 0:02:55]} 3. Bc4 {[%clk 0:03:00]}  Be7 {[%clk 0:02:54]} 4. c3 {[%clk 0:02:57]}  Nf6 {[%clk 0:02:48]} 5. d4 {[%clk 0:02:56]}  d6 {[%clk 0:02:40]} 6. d5 {[%clk 0:02:49]}  Nb8 {[%clk 0:02:38]} 7. Nbd2 {[%clk 0:02:48]}  O-O {[%clk 0:02:33]} 8. h3 {[%clk 0:02:48]}  Kh8 {[%clk 0:02:33]} 9. Bd3 {[%clk 0:02:42]}  a5 {[%clk 0:02:29]} 10. a3 {[%clk 0:02:39]}  Ng8 {[%clk 0:02:29]} 11. Nf1 {[%clk 0:02:35]}  f5 {[%clk 0:02:29]} 12. Ng3 {[%clk 0:02:34]}  f4 {[%clk 0:02:26]} 13. Ne2 {[%clk 0:02:29]}  Na6 {[%clk 0:02:23]} 14. b4 {[%clk 0:02:28]}  Nb8 {[%clk 0:02:18]} 15. Bd2 {[%clk 0:02:25]}  b6 {[%clk 0:02:18]} 16. Neg1 {[%clk 0:02:22]}  Ba6 {[%clk 0:02:16]} 17. b5 {[%clk 0:02:19]}  Bc8 {[%clk 0:02:15]} 18. Nh2 {[%clk 0:02:17]}  Nd7 {[%clk 0:02:15]} 19. c4 {[%clk 0:02:15]}  Nc5 {[%clk 0:02:15]} 20. Bc2 {[%clk 0:02:16]}  Nf6 {[%clk 0:02:07]} 21. Qe2 {[%clk 0:02:14]}  Qe8 {[%clk 0:02:05]} 22. Ng4 {[%clk 0:02:13]}  Qg6 {[%clk 0:02:02]} 23. Nxf6 {[%clk 0:02:11]}  Qxg2 {[%clk 0:01:51]} 24. Nxh7 {[%clk 0:01:58]}  Kxh7 {[%clk 0:01:32]} 25. O-O-O {[%clk 0:01:51]}  Qxh1 {[%clk 0:01:24]} 26. Qh5+ {[%clk 0:01:50]}  Kg8 {[%clk 0:01:22]} 27. Kb1 {[%clk 0:01:22]}  Qg2 {[%clk 0:01:21]} 28. Qe2 {[%clk 0:01:07]}  Qg6 {[%clk 0:01:06]} 29. Nf3 {[%clk 0:01:06]}  Qh5 {[%clk 0:01:03]} 30. Rh1 {[%clk 0:00:57]}  Bd7 {[%clk 0:01:01]} 31. Bd1 {[%clk 0:00:51]}  a4 {[%clk 0:00:56]} 32. Ka2 {[%clk 0:00:49]}  Nb3 {[%clk 0:00:50]} 33. Bc3 {[%clk 0:00:44]}  Nc1+ {[%clk 0:00:47]} 34. Kb2 {[%clk 0:00:41]}  Nxe2 {[%clk 0:00:47]} 35. Bxe2 {[%clk 0:00:42]}  Qg6 {[%clk 0:00:46]} 36. Rg1 {[%clk 0:00:29]}  Qxe4 {[%clk 0:00:44]} 0-1


[Site "https://www.chess.com"]

[Event "Titled Tuesday Blitz November 07 Early 2023"]
[White "GatoRojo150"]
[Black "Sviridova, Vlada"]
[BlackFideId "24109606"]
[WhiteElo "2587"]
[BlackElo "2244"]
[Result "1-0"]
[Round "1"]
[TimeControl "180+1"]
[Date "2023.11.07"]
[WhiteClock "0:01:56"]
[BlackClock "0:00:00"]
[Board "205"]

1. e4 {[%clk 0:03:00]}  e6 {[%clk 0:01:25]} 2. d4 {[%clk 0:02:59]}  d5 {[%clk 0:01:04]} 3. Nc3 {[%clk 0:02:58]}  Bb4 {[%clk 0:01:03]} 4. e5 {[%clk 0:02:58]}  c5 {[%clk 0:01:03]} 5. a3 {[%clk 0:02:59]}  Bxc3+ {[%clk 0:01:03]} 6. bxc3 {[%clk 0:03:00]}  Ne7 {[%clk 0:01:01]} 7. Qg4 {[%clk 0:03:00]}  O-O {[%clk 0:00:58]} 8. Bd3 {[%clk 0:02:59]}  Nbc6 {[%clk 0:00:56]} 9. Nf3 {[%clk 0:02:58]}  f5 {[%clk 0:00:54]} 10. Qh3 {[%clk 0:02:58]}  c4 {[%clk 0:00:44]} 11. Be2 {[%clk 0:02:58]}  Qe8 {[%clk 0:00:44]} 12. Rg1 {[%clk 0:02:51]}  Bd7 {[%clk 0:00:43]} 13. g4 {[%clk 0:02:51]}  f4 {[%clk 0:00:43]} 14. g5 {[%clk 0:02:29]}  b5 {[%clk 0:00:33]} 15. g6 {[%clk 0:02:24]}  Nxg6 {[%clk 0:00:31]} 16. Ng5 {[%clk 0:02:24]}  h6 {[%clk 0:00:30]} 17. Nf3 {[%clk 0:02:15]}  Nce7 {[%clk 0:00:28]} 18. Nh4 {[%clk 0:02:15]}  Nxh4 {[%clk 0:00:27]} 19. Qxh4 {[%clk 0:02:16]}  Nf5 {[%clk 0:00:27]} 20. Qxf4 {[%clk 0:02:14]}  Kh8 {[%clk 0:00:25]} 21. Qg4 {[%clk 0:02:12]}  Qf7 {[%clk 0:00:23]} 22. Qh3 {[%clk 0:02:11]}  a5 {[%clk 0:00:20]} 23. Bh5 {[%clk 0:02:11]}  Qe7 {[%clk 0:00:19]} 24. Bg6 {[%clk 0:02:11]}  Rab8 {[%clk 0:00:15]} 25. Bd2 {[%clk 0:02:06]}  Be8 {[%clk 0:00:15]} 26. Bxf5 {[%clk 0:02:03]}  exf5 {[%clk 0:00:14]} 27. Bxh6 {[%clk 0:02:01]}  Bg6 {[%clk 0:00:07]} 28. Rxg6 {[%clk 0:02:00]}  gxh6 {[%clk 0:00:07]} 29. Rxh6+ {[%clk 0:02:00]}  Kg8 {[%clk 0:00:07]} 30. Rh8+ {[%clk 0:02:00]}  Kf7 {[%clk 0:00:06]} 31. Rh7+ {[%clk 0:02:00]}  Ke8 {[%clk 0:00:06]} 32. Rxe7+ {[%clk 0:02:00]}  Kxe7 {[%clk 0:00:06]} 33. Qh4+ {[%clk 0:01:59]}  Ke6 {[%clk 0:00:05]} 34. Qh6+ {[%clk 0:01:58]}  Kf7 {[%clk 0:00:03]} 35. Qf6+ {[%clk 0:01:57]}  Kg8 {[%clk 0:00:01]} 36. Qg6+ {[%clk 0:01:56]}  Kh8 {[%clk 0:00:02]} 37. Ke2 {[%clk 0:01:56]}  f4 {[%clk 0:00:00]} 38. Qh6+ {[%clk 0:01:56]} 1-0


[Site "https://www.chess.com"]

[Event "Titled Tuesday Blitz November 07 Early 2023"]
[White "Witty_Alien"]
[Black "Predator0608"]
[WhiteElo "2238"]
[BlackElo "2582"]
[Result "1-0"]
[Round "1"]
[TimeControl "180+1"]
[Date "2023.11.07"]
[WhiteClock "0:00:05"]
[BlackClock "0:00:11"]
[Board "208"]

1. e4 {[%clk 0:02:59]}  c5 {[%clk 0:02:59]} 2. Nf3 {[%clk 0:02:58]}  d6 {[%clk 0:02:59]} 3. d4 {[%clk 0:02:59]}  cxd4 {[%clk 0:03:00]} 4. c3 {[%clk 0:02:59]}  Nf6 {[%clk 0:02:27]} 5. Bd3 {[%clk 0:02:28]}  dxc3 {[%clk 0:02:19]} 6. O-O {[%clk 0:02:29]}  g6 {[%clk 0:02:20]} 7. Re1 {[%clk 0:02:28]}  Bg7 {[%clk 0:02:20]} 8. Nxc3 {[%clk 0:02:18]}  O-O {[%clk 0:02:19]} 9. Bg5 {[%clk 0:02:17]}  Nc6 {[%clk 0:02:14]} 10. Nd5 {[%clk 0:01:57]}  e6 {[%clk 0:01:59]} 11. Nxf6+ {[%clk 0:01:52]}  Bxf6 {[%clk 0:02:00]} 12. Bxf6 {[%clk 0:01:48]}  Qxf6 {[%clk 0:02:00]} 13. Bb5 {[%clk 0:01:24]}  Rd8 {[%clk 0:01:34]} 14. h4 {[%clk 0:01:09]}  Ne5 {[%clk 0:01:27]} 15. Nxe5 {[%clk 0:00:52]}  Qxe5 {[%clk 0:01:28]} 16. h5 {[%clk 0:00:51]}  Qxb5 {[%clk 0:01:27]} 17. h6 {[%clk 0:00:48]}  Qe5 {[%clk 0:01:24]} 18. Rc1 {[%clk 0:00:42]}  Qg5 {[%clk 0:01:15]} 19. Rc7 {[%clk 0:00:39]}  Qxh6 {[%clk 0:01:07]} 20. e5 {[%clk 0:00:39]}  d5 {[%clk 0:01:03]} 21. Qf3 {[%clk 0:00:39]}  Rd7 {[%clk 0:00:58]} 22. Rec1 {[%clk 0:00:37]}  Rxc7 {[%clk 0:00:57]} 23. Rxc7 {[%clk 0:00:38]}  Qf8 {[%clk 0:00:57]} 24. b4 {[%clk 0:00:11]}  b6 {[%clk 0:00:46]} 25. b5 {[%clk 0:00:11]}  Rb8 {[%clk 0:00:46]} 26. Rxa7 {[%clk 0:00:10]}  Bb7 {[%clk 0:00:47]} 27. Qe3 {[%clk 0:00:10]}  Qd8 {[%clk 0:00:41]} 28. a4 {[%clk 0:00:09]}  Qc7 {[%clk 0:00:35]} 29. Kh2 {[%clk 0:00:08]}  f6 {[%clk 0:00:34]} 30. f4 {[%clk 0:00:07]}  f5 {[%clk 0:00:29]} 31. Kg3 {[%clk 0:00:06]}  Ra8 {[%clk 0:00:26]} 32. Rxa8+ {[%clk 0:00:05]}  Bxa8 {[%clk 0:00:27]} 33. Kh4 {[%clk 0:00:03]}  Kg7 {[%clk 0:00:27]} 34. g4 {[%clk 0:00:01]}  Kf7 {[%clk 0:00:27]} 35. gxf5 {[%clk 0:00:01]}  gxf5 {[%clk 0:00:28]} 36. Qe2 {[%clk 0:00:02]}  Qe7+ {[%clk 0:00:27]} 37. Kh5 {[%clk 0:00:02]}  Kf8 {[%clk 0:00:23]} 38. Qg2 {[%clk 0:00:02]}  Bb7 {[%clk 0:00:24]} 39. Qg1 {[%clk 0:00:01]}  Bc8 {[%clk 0:00:22]} 40. Qxb6 {[%clk 0:00:01]}  Qf7+ {[%clk 0:00:17]} 41. Kh4 {[%clk 0:00:01]}  Bd7 {[%clk 0:00:17]} 42. Kg3 {[%clk 0:00:01]}  Qg6+ {[%clk 0:00:17]} 43. Kf2 {[%clk 0:00:02]}  Qg4 {[%clk 0:00:18]} 44. Qd6+ {[%clk 0:00:02]}  Ke8 {[%clk 0:00:18]} 45. Qb8+ {[%clk 0:00:03]}  Kf7 {[%clk 0:00:18]} 46. b6 {[%clk 0:00:02]}  Qxf4+ {[%clk 0:00:18]} 47. Kg1 {[%clk 0:00:02]}  Qxa4 {[%clk 0:00:19]} 48. Qc7 {[%clk 0:00:02]}  Qa1+ {[%clk 0:00:19]} 49. Kh2 {[%clk 0:00:02]}  Qb2+ {[%clk 0:00:18]} 50. Kg3 {[%clk 0:00:01]}  f4+ {[%clk 0:00:19]} 51. Kxf4 {[%clk 0:00:02]}  Qf2+ {[%clk 0:00:20]} 52. Kg4 {[%clk 0:00:02]}  Qf5+ {[%clk 0:00:20]} 53. Kg3 {[%clk 0:00:02]}  Qd3+ {[%clk 0:00:19]} 54. Kf2 {[%clk 0:00:02]}  Qd4+ {[%clk 0:00:20]} 55. Kg3 {[%clk 0:00:03]}  Kg6 {[%clk 0:00:15]} 56. Qxd7 {[%clk 0:00:03]}  Qxe5+ {[%clk 0:00:15]} 57. Kh4 {[%clk 0:00:01]}  Qh2+ {[%clk 0:00:14]} 58. Kg4 {[%clk 0:00:02]}  Qe2+ {[%clk 0:00:14]} 59. Kg3 {[%clk 0:00:01]}  Kf5 {[%clk 0:00:15]} 60. Qf7+ {[%clk 0:00:01]}  Ke4 {[%clk 0:00:13]} 61. b7 {[%clk 0:00:02]}  Qd3+ {[%clk 0:00:10]} 62. Kf2 {[%clk 0:00:01]}  Qc2+ {[%clk 0:00:11]} 63. Kg1 {[%clk 0:00:01]}  Qb1+ {[%clk 0:00:11]} 64. Kh2 {[%clk 0:00:01]}  d4 {[%clk 0:00:09]} 65. Qxh7+ {[%clk 0:00:01]}  Ke3 {[%clk 0:00:09]} 66. Qxb1 {[%clk 0:00:02]}  d3 {[%clk 0:00:10]} 67. Qe1+ {[%clk 0:00:03]}  Kd4 {[%clk 0:00:10]} 68. b8=Q {[%clk 0:00:04]}  e5 {[%clk 0:00:10]} 69. Qexe5+ {[%clk 0:00:04]}  Kc4 {[%clk 0:00:11]} 70. Qbb5# {[%clk 0:00:05]} 1-0


[Site "https://www.chess.com"]

[Event "Titled Tuesday Blitz November 07 Early 2023"]
[White "Sturt, Raven"]
[Black "Quirke, Jeffrey"]
[WhiteFideId "2007304"]
[BlackFideId "2013029"]
[WhiteElo "2581"]
[BlackElo "2236"]
[Result "1-0"]
[Round "1"]
[TimeControl "180+1"]
[Date "2023.11.07"]
[WhiteClock "0:00:04"]
[BlackClock "0:00:00"]
[Board "209"]

1. f4 {[%clk 0:02:58]}  c5 {[%clk 0:02:57]} 2. Nf3 {[%clk 0:02:48]}  g6 {[%clk 0:02:55]} 3. e4 {[%clk 0:02:29]}  Bg7 {[%clk 0:02:54]} 4. Nc3 {[%clk 0:02:28]}  Nc6 {[%clk 0:02:54]} 5. Bc4 {[%clk 0:02:27]}  e6 {[%clk 0:02:54]} 6. O-O {[%clk 0:02:13]}  Nge7 {[%clk 0:02:53]} 7. d3 {[%clk 0:02:08]}  O-O {[%clk 0:02:51]} 8. e5 {[%clk 0:02:06]}  d5 {[%clk 0:02:47]} 9. exd6 {[%clk 0:02:06]}  Nf5 {[%clk 0:02:47]} 10. Ne4 {[%clk 0:01:47]}  Nxd6 {[%clk 0:02:37]} 11. Be3 {[%clk 0:01:26]}  b6 {[%clk 0:02:32]} 12. c3 {[%clk 0:01:04]}  Bb7 {[%clk 0:02:29]} 13. Nxd6 {[%clk 0:01:02]}  Qxd6 {[%clk 0:02:28]} 14. Qe2 {[%clk 0:01:02]}  Rad8 {[%clk 0:02:23]} 15. Rad1 {[%clk 0:01:01]}  Ne7 {[%clk 0:02:15]} 16. Ne5 {[%clk 0:00:52]}  Nc6 {[%clk 0:02:03]} 17. d4 {[%clk 0:00:49]}  cxd4 {[%clk 0:02:01]} 18. cxd4 {[%clk 0:00:49]}  Ne7 {[%clk 0:01:54]} 19. Bf2 {[%clk 0:00:33]}  Bd5 {[%clk 0:01:23]} 20. b3 {[%clk 0:00:27]}  Rc8 {[%clk 0:01:14]} 21. Rd2 {[%clk 0:00:22]}  Rfd8 {[%clk 0:00:57]} 22. Rfd1 {[%clk 0:00:22]}  Qc7 {[%clk 0:00:47]} 23. Bh4 {[%clk 0:00:20]}  Rf8 {[%clk 0:00:20]} 24. Ba6 {[%clk 0:00:20]}  Rcd8 {[%clk 0:00:18]} 25. Rc2 {[%clk 0:00:20]}  Qd6 {[%clk 0:00:16]} 26. h3 {[%clk 0:00:13]}  Nf5 {[%clk 0:00:15]} 27. Bxd8 {[%clk 0:00:13]}  Rxd8 {[%clk 0:00:16]} 28. Bc4 {[%clk 0:00:11]}  Ng3 {[%clk 0:00:14]} 29. Qe1 {[%clk 0:00:08]}  Ne4 {[%clk 0:00:11]} 30. Qe3 {[%clk 0:00:08]}  f5 {[%clk 0:00:10]} 31. Bxd5 {[%clk 0:00:08]}  exd5 {[%clk 0:00:10]} 32. Rc6 {[%clk 0:00:07]}  Qb4 {[%clk 0:00:09]} 33. Rdc1 {[%clk 0:00:07]}  Qa3 {[%clk 0:00:08]} 34. Rc8 {[%clk 0:00:06]}  Rf8 {[%clk 0:00:05]} 35. Rxf8+ {[%clk 0:00:05]}  Bxf8 {[%clk 0:00:05]} 36. Rc2 {[%clk 0:00:05]}  a5 {[%clk 0:00:04]} 37. Qc1 {[%clk 0:00:06]}  Qb4 {[%clk 0:00:03]} 38. Qe3 {[%clk 0:00:04]}  Qa3 {[%clk 0:00:02]} 39. Rc8 {[%clk 0:00:04]}  Qb4 {[%clk 0:00:00]} 40. Nd7 {[%clk 0:00:04]} 1-0


[Site "https://www.chess.com"]

[Event "Titled Tuesday Blitz November 07 Early 2023"]
[White "le-castor-faineant"]
[Black "Jaskolka, Tomasz"]
[BlackFideId "1170791"]
[WhiteElo "2230"]
[BlackElo "2571"]
[Result "0-1"]
[Round "1"]
[TimeControl "180+1"]
[Date "2023.11.07"]
[WhiteClock "0:00:44"]
[BlackClock "0:00:58"]
[Board "212"]

1. e4 {[%clk 0:03:00]}  c5 {[%clk 0:03:00]} 2. Nf3 {[%clk 0:03:01]}  e6 {[%clk 0:03:00]} 3. c4 {[%clk 0:03:00]}  Nc6 {[%clk 0:02:59]} 4. Nc3 {[%clk 0:03:00]}  Nd4 {[%clk 0:02:56]} 5. d3 {[%clk 0:02:59]}  g6 {[%clk 0:02:52]} 6. Be3 {[%clk 0:02:59]}  Bg7 {[%clk 0:02:52]} 7. Rb1 {[%clk 0:02:52]}  Ne7 {[%clk 0:02:47]} 8. Ne2 {[%clk 0:02:52]}  Nxf3+ {[%clk 0:02:39]} 9. gxf3 {[%clk 0:02:52]}  Qa5+ {[%clk 0:02:40]} 10. Bd2 {[%clk 0:02:44]}  Qxa2 {[%clk 0:02:36]} 11. d4 {[%clk 0:01:41]}  cxd4 {[%clk 0:02:01]} 12. c5 {[%clk 0:01:12]}  Nc6 {[%clk 0:01:47]} 13. Nc1 {[%clk 0:01:09]}  Qxb1 {[%clk 0:01:42]} 14. Qb3 {[%clk 0:01:05]}  Qa1 {[%clk 0:01:07]} 15. Be2 {[%clk 0:00:59]}  d3 {[%clk 0:00:58]} 16. Bxd3 {[%clk 0:00:57]}  Nd4 {[%clk 0:00:58]} 17. Qd1 {[%clk 0:00:51]}  Qxb2 {[%clk 0:00:58]} 18. O-O {[%clk 0:00:44]}  Qxd2 {[%clk 0:00:58]} 0-1


[Site "https://www.chess.com"]

[Event "Titled Tuesday Blitz November 07 Early 2023"]
[White "brm72"]
[Black "Skuhala, Barbara"]
[BlackFideId "14605465"]
[WhiteElo "2565"]
[BlackElo "2209"]
[Result "0-1"]
[Round "1"]
[TimeControl "180+1"]
[Date "2023.11.07"]
[WhiteClock "0:00:00"]
[BlackClock "0:01:08"]
[Board "217"]

1. e4 {[%clk 0:03:00]}  c5 {[%clk 0:02:55]} 2. Nf3 {[%clk 0:03:00]}  d6 {[%clk 0:02:53]} 3. d4 {[%clk 0:03:01]}  cxd4 {[%clk 0:02:53]} 4. Nxd4 {[%clk 0:03:01]}  Nf6 {[%clk 0:02:51]} 5. Nc3 {[%clk 0:03:02]}  a6 {[%clk 0:02:52]} 6. Be2 {[%clk 0:03:00]}  e5 {[%clk 0:02:51]} 7. Nb3 {[%clk 0:03:00]}  Be7 {[%clk 0:02:51]} 8. O-O {[%clk 0:02:58]}  Be6 {[%clk 0:02:51]} 9. Re1 {[%clk 0:02:58]}  O-O {[%clk 0:02:49]} 10. Bf3 {[%clk 0:02:58]}  Nbd7 {[%clk 0:02:46]} 11. a4 {[%clk 0:02:57]}  Rc8 {[%clk 0:02:46]} 12. a5 {[%clk 0:02:56]}  Qc7 {[%clk 0:02:47]} 13. Be3 {[%clk 0:02:50]}  Rfd8 {[%clk 0:02:47]} 14. h3 {[%clk 0:02:45]}  Nc5 {[%clk 0:02:45]} 15. Bxc5 {[%clk 0:01:44]}  dxc5 {[%clk 0:02:42]} 16. Nd2 {[%clk 0:01:43]}  c4 {[%clk 0:02:39]} 17. Qe2 {[%clk 0:01:41]}  Rd7 {[%clk 0:02:35]} 18. Nf1 {[%clk 0:01:38]}  Rcd8 {[%clk 0:02:34]} 19. Red1 {[%clk 0:01:33]}  Bb4 {[%clk 0:02:34]} 20. Nd5 {[%clk 0:01:14]}  Bxd5 {[%clk 0:02:32]} 21. exd5 {[%clk 0:01:14]}  Nxd5 {[%clk 0:02:30]} 22. Bxd5 {[%clk 0:01:08]}  Rxd5 {[%clk 0:02:30]} 23. Ne3 {[%clk 0:01:08]}  Rxd1+ {[%clk 0:02:28]} 24. Rxd1 {[%clk 0:01:07]}  Rxd1+ {[%clk 0:02:27]} 25. Qxd1 {[%clk 0:01:07]}  Bxa5 {[%clk 0:02:25]} 26. Qd5 {[%clk 0:01:01]}  c3 {[%clk 0:01:53]} 27. b3 {[%clk 0:00:51]}  Bb6 {[%clk 0:01:52]} 28. Nc4 {[%clk 0:00:51]}  Bd4 {[%clk 0:01:51]} 29. Kf1 {[%clk 0:00:37]}  g6 {[%clk 0:01:45]} 30. f4 {[%clk 0:00:37]}  b5 {[%clk 0:01:40]} 31. Nd6 {[%clk 0:00:30]}  Qe7 {[%clk 0:01:28]} 32. Ne4 {[%clk 0:00:19]}  Kg7 {[%clk 0:01:20]} 33. fxe5 {[%clk 0:00:18]}  Bxe5 {[%clk 0:01:19]} 34. Kg1 {[%clk 0:00:17]}  h6 {[%clk 0:01:17]} 35. Nf2 {[%clk 0:00:16]}  Bf6 {[%clk 0:01:16]} 36. Ng4 {[%clk 0:00:15]}  h5 {[%clk 0:01:10]} 37. Nf2 {[%clk 0:00:00]}  Qe1+ {[%clk 0:01:08]} 0-1


[Site "https://www.chess.com"]